bitfinex-derivatives/quotes_BTCF0:USTF0_20250426
["timestamp","ask_amount","ask_price","bid_price","bid_amount"]
[1745697624539,0.88552363,94366.0,94365.0,0.62728387]
[1745697625340,0.88552363,94366.0,94365.0,0.61126536]
[1745697626238,0.88552363,94366.0,94365.0,0.44995382]
[1745697626538,0.88552363,94366.0,94365.0,0.46599549]
[1745697626732,0.85472363,94366.0,94365.0,0.46599549]
[1745697627537,0.85472363,94366.0,94365.0,0.46599603]
[1745697629939,0.85472363,94366.0,94365.0,0.44995436]
[1745697632743,0.85472363,94366.0,94365.0,0.44995483]
[1745697633845,0.85472363,94366.0,94365.0,0.46603873]
[1745697635542,0.49392363,94366.0,94365.0,0.46603873]
[1745697635747,0.85472363,94366.0,94365.0,0.46603873]
[1745697637347,0.64285073,94366.0,94365.0,0.46603873]
[1745697637842,0.28205073,94366.0,94365.0,0.46603873]
[1745697638144,0.28205073,94366.0,94365.0,0.46603643]
[1745697638647,0.28205073,94366.0,94365.0,0.57200843]
[1745697638950,0.26185012,94366.0,94365.0,0.57200843]
[1745697639140,0.25390233,94366.0,94365.0,0.57200843]
[1745697639346,0.05902892,94366.0,94365.0,0.57200843]
[1745697639543,0.3608,94375.0,94374.0,0.2118549]
[1745697639744,0.6008,94375.0,94374.0,0.34083177]
[1745697639937,0.6008,94375.0,94374.0,0.32841343]
[1745697640141,0.6008,94375.0,94374.0,0.55841343]
[1745697640444,0.6008,94375.0,94374.0,0.58667744]
[1745697640847,0.6018,94375.0,94374.0,0.58667744]
[1745697641250,0.241,94375.0,94374.0,0.58667744]
[1745697641643,0.241,94375.0,94374.0,0.58667551]
[1745697641845,0.241,94375.0,94374.0,0.59909286]
[1745697642041,0.24117242,94375.0,94374.0,0.59909286]
[1745697643342,0.24117242,94375.0,94374.0,0.59909279]
[1745697644952,0.24117242,94375.0,94374.0,0.81417485]
[1745697645147,0.24117242,94375.0,94374.0,0.81417478]
[1745697645750,0.10607271,94375.0,94374.0,0.81417478]
[1745697645949,0.10607271,94375.0,94374.0,0.80175757]
[1745697646757,0.10607271,94375.0,94374.0,0.58667551]
[1745697647455,0.10607271,94375.0,94374.0,0.58667518]
[1745697649657,0.0981257,94375.0,94374.0,0.58667518]
[1745697650857,0.0981257,94375.0,94374.0,0.57059128]
[1745697653059,0.0981257,94375.0,94374.0,0.58683748]
[1745697653856,0.0981257,94375.0,94374.0,0.58683739]
[1745697658255,0.0981257,94375.0,94374.0,0.58683688]
[1745697659962,0.09017898,94375.0,94374.0,0.58683688]
[1745697661958,0.09017898,94375.0,94374.0,0.74792011]
[1745697662861,0.09017898,94375.0,94374.0,0.76033675]
[1745697663556,0.09017898,94375.0,94374.0,0.74378108]
[1745697663760,0.09017898,94375.0,94374.0,0.73136444]
[1745697663960,0.09017898,94375.0,94374.0,0.76033661]
[1745697664160,0.08488123,94375.0,94374.0,0.76033661]
[1745697666162,0.07743124,94375.0,94374.0,0.48648171]
[1745697666465,0.49302512,94375.0,94374.0,0.48648171]
[1745697666667,0.28117242,94375.0,94374.0,0.68209041]
[1745697666857,0.28117242,94375.0,94374.0,0.50859054]
[1745697672770,0.37617242,94375.0,94374.0,0.50859054]
[1745697676272,0.37617242,94375.0,94374.0,0.5085929]
[1745697677379,0.58802512,94375.0,94374.0,0.5085929]
[1745697677573,0.94398513,94375.0,94374.0,0.28455789]
[1745697677873,0.94398513,94375.0,94358.0,0.26885258]
[1745697677874,0.2118751,94365.0,94358.0,0.26885258]
[1745697678072,0.8526751,94365.0,94359.0,0.2118886]
[1745697678275,0.8526751,94365.0,94358.0,0.26885258]
[1745697678276,0.8526751,94365.0,94358.0,0.0529725]
[1745697678463,0.8526751,94365.0,94364.0,0.22726652]
[1745697678864,0.8526751,94365.0,94364.0,0.44914392]
[1745697679381,0.6408,94365.0,94364.0,0.61814392]
[1745697679767,0.8526751,94365.0,94364.0,0.61814392]
[1745697680265,0.8526751,94365.0,94364.0,0.40626652]
[1745697680467,0.8526751,94365.0,94364.0,0.61814392]
[1745697680665,0.6408,94365.0,94364.0,0.61814392]
[1745697680877,0.8526751,94365.0,94364.0,0.61814392]
[1745697681676,0.8526751,94365.0,94364.0,0.39408206]
[1745697681978,0.8526751,94365.0,94364.0,0.3908774]
[1745697682174,0.8526751,94365.0,94364.0,0.179]
[1745697682382,0.8526751,94365.0,94364.0,0.3908774]
[1745697685674,0.8526751,94365.0,94364.0,0.179]
[1745697686172,0.9165751,94365.0,94364.0,0.179]
[1745697686772,0.9165751,94365.0,94364.0,0.3908774]
[1745697688871,0.9165751,94365.0,94364.0,0.179]
[1745697690081,0.9165751,94365.0,94364.0,0.3908774]
[1745697694487,0.9165751,94365.0,94364.0,0.4230774]
[1745697696683,0.8846751,94365.0,94364.0,0.4230774]
[1745697696878,0.6408,94365.0,94364.0,0.4230774]
[1745697697177,0.8526751,94365.0,94364.0,0.4230774]
[1745697697382,0.28,94365.0,94364.0,0.4230774]
[1745697697677,0.28,94365.0,94364.0,0.4387002]
[1745697701097,0.28,94365.0,94364.0,0.43885162]
[1745697702296,0.28,94365.0,94364.0,0.4230774]
[1745697711690,0.4918751,94365.0,94364.0,0.2112]
[1745697712195,0.5250751,94365.0,94364.0,0.179]
[1745697713585,0.5250751,94365.0,94364.0,0.3908774]
[1745697715494,0.5557751,94365.0,94364.0,0.3908774]
[1745697715694,0.28,94365.0,94364.0,0.3908774]
[1745697716496,0.28,94365.0,94364.0,0.4549774]
[1745697719093,0.28,94365.0,94364.0,0.6308774]
[1745697719298,0.28,94365.0,94364.0,0.4549774]
[1745697720199,0.28,94365.0,94364.0,0.67005946]
[1745697721100,0.14488891,94365.0,94364.0,0.67005946]
[1745697722601,0.14488891,94365.0,94364.0,0.47080365]
[1745697727003,0.14488891,94365.0,94364.0,0.47086349]
[1745697728505,0.14488891,94365.0,94364.0,0.83166349]
[1745697732206,0.14488891,94365.0,94364.0,0.83196632]
[1745697732601,0.14488891,94365.0,94364.0,0.40706632]
[1745697733802,0.35676401,94365.0,94364.0,0.40706632]
[1745697734600,0.35676401,94365.0,94364.0,0.43956632]
[1745697740701,0.42116401,94365.0,94364.0,0.19518892]
[1745697742099,0.42116401,94365.0,94364.0,0.40706632]
[1745697742614,0.42132018,94365.0,94364.0,0.40706632]
[1745697743003,0.42132018,94365.0,94364.0,0.46776632]
[1745697744700,0.42132018,94365.0,94364.0,0.46775322]
[1745697746310,0.42132018,94365.0,94364.0,0.4515774]
[1745697746607,0.42132018,94365.0,94364.0,0.46774458]
[1745697747910,0.42132018,94365.0,94364.0,0.40704458]
[1745697748210,0.42132018,94365.0,94364.0,0.40681585]
[1745697748901,0.42132018,94365.0,94364.0,0.19493845]
[1745697749099,0.42132018,94365.0,94364.0,0.40681585]
[1745697749502,0.42132018,94365.0,94364.0,0.3908774]
[1745697752415,0.42132018,94365.0,94364.0,0.4229774]
[1745697756812,0.38882018,94365.0,94364.0,0.4229774]
[1745697757409,0.38882018,94365.0,94364.0,0.4538774]
[1745697765515,0.42182018,94365.0,94364.0,0.4538774]
[1745697770921,0.45222018,94365.0,94364.0,0.4538774]
[1745697773028,0.41922018,94365.0,94364.0,0.4538774]
[1745697773226,0.38882018,94365.0,94364.0,0.4538774]
[1745697778822,0.38882018,94365.0,94364.0,0.242]
[1745697779017,0.42092018,94365.0,94364.0,0.242]
[1745697779221,0.45102018,94365.0,94364.0,0.179]
[1745697782028,0.38882018,94365.0,94364.0,0.179]
[1745697782229,0.38882018,94365.0,94364.0,0.2438]
[1745697782933,0.38882018,94365.0,94364.0,0.4556774]
[1745697789034,0.74962018,94365.0,94364.0,0.4556774]
[1745697789635,0.74962018,94365.0,94364.0,0.2438]
[1745697790629,0.78192018,94365.0,94364.0,0.2438]
[1745697791536,0.78192018,94365.0,94364.0,0.4556774]
[1745697794332,0.74962018,94365.0,94364.0,0.4556774]
[1745697795934,0.38882018,94365.0,94364.0,0.4556774]
[1745697796129,0.74962018,94365.0,94364.0,0.4556774]
[1745697798647,0.38882018,94365.0,94364.0,0.4556774]
[1745697798834,0.35692018,94365.0,94364.0,0.4556774]
[1745697799026,0.14504508,94365.0,94364.0,0.4556774]
[1745697799233,0.4179,94383.0,94364.0,0.4556774]
[1745697799234,0.36076,94377.0,94376.0,0.2118504]
[1745697799425,0.64076,94377.0,94376.0,0.3518504]
[1745697799636,0.8526082,94377.0,94376.0,0.3518504]
[1745697799838,0.8526082,94377.0,94376.0,0.36786879]
[1745697800025,0.8526082,94377.0,94376.0,0.43036879]
[1745697800226,0.8526082,94377.0,94376.0,0.59836879]
[1745697800434,0.8536082,94377.0,94376.0,0.59836879]
[1745697801236,0.8536082,94377.0,94376.0,0.59864965]
[1745697802636,0.4928482,94377.0,94376.0,0.59864965]
[1745697804641,0.4928482,94377.0,94376.0,0.59856569]
[1745697804832,0.281,94377.0,94376.0,0.59856569]
[1745697809944,0.281,94377.0,94376.0,0.59869363]
[1745697811946,0.281,94377.0,94376.0,0.59855638]
[1745697813651,0.281,94377.0,94376.0,0.59853867]
[1745697815447,0.281,94377.0,94376.0,0.59855421]
[1745697815943,0.281,94377.0,94376.0,0.5984716]
[1745697817244,0.4928482,94377.0,94376.0,0.5986847]
[1745697817938,0.281,94377.0,94376.0,0.5986847]
[1745697819040,0.281,94377.0,94376.0,0.59859955]
[1745697819439,0.312,94377.0,94376.0,0.59859955]
[1745697824342,0.312,94377.0,94376.0,0.59850254]
[1745697825249,0.5238482,94377.0,94376.0,0.59850336]
[1745697828951,0.5238482,94377.0,94376.0,0.5823504]
[1745697830860,0.5238482,94377.0,94376.0,0.59815718]
[1745697831461,0.5238482,94377.0,94376.0,0.5981574]
[1745697835063,0.5238482,94377.0,94376.0,0.59800044]
[1745697836769,0.5238482,94377.0,94376.0,0.59801673]
[1745697838976,0.5238482,94377.0,94376.0,0.5823504]
[1745697840879,0.5238482,94377.0,94376.0,0.59797452]
[1745697843984,0.5238482,94377.0,94376.0,0.5823504]
[1745697847385,0.312,94377.0,94376.0,0.5823504]
[1745697847971,0.312,94377.0,94376.0,0.59799759]
[1745697850381,0.312,94377.0,94376.0,0.81287795]
[1745697851082,0.5238482,94377.0,94376.0,0.81287795]
[1745697851885,0.5238482,94377.0,94376.0,0.79723076]
[1745697853484,0.312,94377.0,94376.0,0.79723076]
[1745697855094,0.312,94377.0,94376.0,0.5823504]
[1745697882705,0.312,94377.0,94376.0,0.74396944]
[1745697887612,0.1,94400.0,94383.0,0.2118347]
[1745697887613,0.0313,94384.0,94383.0,0.2118347]
[1745697887810,0.20968166,94384.0,94383.0,0.7326347]
[1745697888110,0.20968166,94384.0,94383.0,1.06225427]
[1745697888313,0.20968166,94384.0,94383.0,1.19855427]
[1745697889702,0.21168166,94384.0,94383.0,1.19855427]
[1745697892007,0.21168166,94384.0,94383.0,1.1428867]
[1745697892214,0.07660651,94384.0,94383.0,1.1428867]
[1745697892422,0.272,94384.0,94383.0,1.1428867]
[1745697893814,0.272,94384.0,94383.0,0.7820867]
[1745697894015,0.272,94384.0,94383.0,1.1428867]
[1745697896215,0.272,94384.0,94383.0,1.0369347]
[1745697897718,0.272,94384.0,94383.0,0.6761347]
[1745697897909,0.272,94384.0,94383.0,1.0369347]
[1745697899119,0.272,94384.0,94383.0,1.2127347]
[1745697900118,0.272,94384.0,94383.0,0.8519347]
[1745697900315,0.272,94384.0,94383.0,1.2127347]
[1745697902921,0.272,94384.0,94383.0,1.3739953]
[1745697904318,0.272,94384.0,94383.0,1.1981953]
[1745697904519,0.26225779,94384.0,94383.0,1.1981953]
[1745697904816,0.0302,94397.0,94383.0,1.1981953]
[1745697904817,0.0741,94400.0,94399.0,0.2117988]
[1745697905018,0.3141,94400.0,94399.0,0.3717988]
[1745697905220,0.3141,94400.0,94399.0,0.5397988]
[1745697905922,0.3141,94400.0,94399.0,0.5998988]
[1745697906122,0.3161,94400.0,94399.0,0.5998988]
[1745697906422,0.3161,94400.0,94399.0,0.5697988]
[1745697907917,0.3161,94400.0,94399.0,0.328]
[1745697908117,0.5278966,94400.0,94399.0,0.328]
[1745697908420,0.5278966,94400.0,94399.0,0.5397988]
[1745697908621,0.5895966,94400.0,94399.0,0.5397988]
[1745697908825,0.5895966,94400.0,94399.0,0.328]
[1745697909121,0.5895966,94400.0,94399.0,0.33909189]
[1745697909619,0.5895966,94400.0,94399.0,0.55089069]
[1745697914022,0.5895966,94400.0,94399.0,0.33909189]
[1745697914220,1.4751886,94400.0,94399.0,0.01]
[1745697914421,0.2118217,94391.0,94390.0,0.2118112]
[1745697914621,0.8126217,94391.0,94390.0,0.2918112]
[1745697915327,0.8126217,94391.0,94390.0,0.3447654]
[1745697916118,0.8755217,94391.0,94390.0,0.5127654]
[1745697917018,0.5147217,94391.0,94390.0,0.5127654]
[1745697917222,0.8755217,94391.0,94390.0,0.5127654]
[1745697917428,0.5147217,94391.0,94390.0,0.5127654]
[1745697917624,0.8755217,94391.0,94390.0,0.5127654]
[1745697918129,0.5147217,94391.0,94390.0,0.5127654]
[1745697918536,0.8755217,94391.0,94390.0,0.5127654]
[1745697919930,0.8755217,94391.0,94390.0,0.248]
[1745697920133,0.8755217,94391.0,94390.0,0.459819]
[1745697924834,0.5147217,94391.0,94390.0,0.459819]
[1745697925137,0.8755217,94391.0,94390.0,0.459819]
[1745697926832,0.5147217,94391.0,94390.0,0.459819]
[1745697927028,0.8755217,94391.0,94390.0,0.459819]
[1745697927537,0.8755217,94391.0,94390.0,0.248]
[1745697927937,0.9814657,94391.0,94390.0,0.248]
[1745697928238,0.9814657,94391.0,94390.0,0.08]
[1745697928938,0.2118325,94384.0,94383.0,0.22338509]
[1745697929141,0.9185845,94384.0,94383.0,0.03155169]
[1745697929441,0.9185845,94384.0,94383.0,0.02]
[1745697929833,1.0124845,94384.0,94383.0,0.02]
[1745697935141,1.3732845,94384.0,94383.0,0.02]
[1745697937459,1.3732845,94384.0,94383.0,0.2318347]
[1745697938151,1.3732845,94384.0,94383.0,0.2956347]
[1745697938351,0.6516845,94384.0,94383.0,0.2956347]
[1745697938550,1.0124845,94384.0,94383.0,0.2956347]
[1745697939242,0.9821845,94384.0,94383.0,0.2956347]
[1745697940648,0.9821845,94384.0,94383.0,0.0838]
[1745697941846,0.6213845,94384.0,94383.0,0.0838]
[1745697942043,0.9821845,94384.0,94383.0,0.0838]
[1745697945156,0.9821845,94384.0,94383.0,0.2518]
[1745697946455,0.6213845,94384.0,94383.0,0.2518]
[1745697946647,0.9821845,94384.0,94383.0,0.2518]
[1745697947555,0.6213845,94384.0,94383.0,0.2518]
[1745697947756,0.9821845,94384.0,94383.0,0.2518]
[1745697948054,0.8762325,94384.0,94383.0,0.2518]
[1745697949456,0.5154325,94384.0,94383.0,0.2518]
[1745697949656,0.8762325,94384.0,94383.0,0.2518]
[1745697953260,0.8435325,94384.0,94383.0,0.2518]
[1745697953461,0.8435325,94384.0,94383.0,0.4636347]
[1745697955761,0.8435325,94384.0,94383.0,0.2518]
[1745697958268,0.8435325,94384.0,94383.0,0.4636347]
[1745697959369,0.8126325,94384.0,94383.0,0.4636347]
[1745697959772,0.6008,94384.0,94383.0,0.4636347]
[1745697959976,0.24,94384.0,94383.0,0.4636347]
[1745697960372,0.24,94384.0,94383.0,0.7136347]
[1745697961279,0.24,94384.0,94383.0,0.4636347]
[1745697963077,0.3388499,94400.0,94399.0,0.2117988]
[1745697963276,0.2647643,94396.0,94395.0,0.2118022]
[1745697963579,0.5147643,94396.0,94395.0,0.3418022]
[1745697964084,0.5147643,94396.0,94395.0,0.5098022]
[1745697968887,0.4618126,94396.0,94395.0,0.5098022]
[1745697981090,0.25,94396.0,94395.0,0.5098022]
[1745697983998,0.4618055,94396.0,94395.0,0.5098022]
[1745697984194,0.4618055,94396.0,94395.0,0.5744022]
[1745697985896,0.25,94396.0,94395.0,0.5744022]
[1745698004493,0.0741,94400.0,94399.0,0.2117988]
[1745698004699,0.3341,94400.0,94399.0,0.3317988]
[1745698005196,0.3341,94400.0,94399.0,0.4997988]
[1745698005404,0.3341,94400.0,94399.0,0.5629988]
[1745698014408,0.3341,94400.0,94399.0,0.72408124]
[1745698017407,0.0329,94403.0,94402.0,0.2117921]
[1745698017704,0.1,94403.0,94402.0,0.3517921]
[1745698018208,0.1,94403.0,94402.0,0.5197921]
[1745698018513,0.1,94403.0,94402.0,0.5846921]
[1745698019610,0.1,94403.0,94402.0,0.59279727]
[1745698021912,0.1,94403.0,94402.0,0.95359727]
[1745698031918,0.1,94403.0,94402.0,1.11493286]
[1745698033114,0.1,94403.0,94402.0,0.75413286]
[1745698035215,0.1,94403.0,94402.0,0.59279727]
[1745698039111,0.1,94403.0,94402.0,0.31610517]
[1745698039312,0.3741898,94403.0,94402.0,0.31610517]
[1745698039517,0.4060898,94403.0,94402.0,0.31610517]
[1745698039722,0.1943,94403.0,94402.0,0.52789727]
[1745698043818,0.4060898,94403.0,94402.0,0.52789727]
[1745698044525,0.1943,94403.0,94402.0,0.52789727]
[1745698044723,0.1626,94403.0,94402.0,0.56089727]
[1745698045025,0.1319,94403.0,94402.0,0.56089727]
[1745698045222,0.1319,94403.0,94402.0,0.59179727]
[1745698050127,0.1,94403.0,94402.0,0.59179727]
[1745698073144,0.1,94403.0,94402.0,0.60764212]
[1745698077034,0.1,94403.0,94402.0,0.59179727]
[1745698077342,0.1,94403.0,94402.0,0.60834901]
[1745698078342,0.1,94403.0,94402.0,0.76975365]
[1745698081649,0.1,94403.0,94402.0,0.60834901]
[1745698082938,0.0013,94421.0,94420.0,0.2117517]
[1745698083145,0.3608,94424.0,94421.0,0.2117495]
[1745698083344,0.3608,94424.0,94423.0,0.211745]
[1745698083546,0.3608,94424.0,94423.0,0.28829674]
[1745698083751,0.6408,94424.0,94423.0,0.28829674]
[1745698084144,0.28,94424.0,94423.0,0.45629674]
[1745698084746,0.28,94424.0,94423.0,0.51849674]
[1745698085644,0.28,94424.0,94423.0,0.52948264]
[1745698087045,0.28,94424.0,94423.0,0.52947957]
[1745698095952,0.28,94424.0,94423.0,0.52947979]
[1745698097756,0.28,94424.0,94423.0,0.52947977]
[1745698107254,0.3122,94424.0,94423.0,0.52947977]
[1745698107855,0.3122,94424.0,94423.0,0.52947981]
[1745698115560,0.3122,94424.0,94423.0,0.52947977]
[1745698117773,0.3122,94424.0,94423.0,0.31773477]
[1745698118071,0.6919427,94424.0,94423.0,0.25553477]
[1745698118261,0.6919427,94424.0,94423.0,0.08753477]
[1745698119173,0.5239427,94424.0,94423.0,0.29927977]
[1745698121670,0.3122,94424.0,94423.0,0.29927977]
[1745698123676,0.3122,94424.0,94423.0,0.33057977]
[1745698124074,0.3122,94424.0,94423.0,0.36227977]
[1745698125072,0.3122,94424.0,94423.0,0.53027977]
[1745698127882,0.3122,94424.0,94423.0,0.53028047]
[1745698130383,0.3122,94424.0,94423.0,0.36228047]
[1745698131189,0.3122,94424.0,94423.0,0.53028047]
[1745698133287,0.3122,94424.0,94423.0,0.53018975]
[1745698136893,0.3122,94424.0,94423.0,0.5302277]
[1745698138694,0.3122,94424.0,94423.0,0.53010891]
[1745698141792,0.3122,94424.0,94423.0,0.53001062]
[1745698142502,0.673,94424.0,94423.0,0.53001062]
[1745698143303,0.673,94424.0,94423.0,0.53002293]
[1745698143898,0.673,94424.0,94423.0,0.5137309]
[1745698144203,0.673,94424.0,94423.0,0.53018363]
[1745698145202,0.673,94424.0,94423.0,0.53016241]
[1745698148597,0.673,94424.0,94423.0,0.53012329]
[1745698148798,0.3122,94424.0,94423.0,0.53012329]
[1745698149006,0.673,94424.0,94423.0,0.53012329]
[1745698150494,0.673,94424.0,94423.0,0.52985994]
[1745698150696,0.3122,94424.0,94423.0,0.52985994]
[1745698150896,0.673,94424.0,94423.0,0.52985994]
[1745698154498,0.3122,94424.0,94423.0,0.52985994]
[1745698154699,0.673,94424.0,94423.0,0.52985994]
[1745698155801,0.673,94424.0,94423.0,0.52991972]
[1745698156000,0.8847427,94424.0,94423.0,0.52991972]
[1745698157307,0.5239427,94424.0,94423.0,0.52991972]
[1745698157603,0.8847427,94424.0,94423.0,0.52991972]
[1745698158005,0.5239427,94424.0,94423.0,0.52991972]
[1745698158206,0.8847427,94424.0,94423.0,0.52991972]
[1745698160303,0.8847427,94424.0,94423.0,0.52987072]
[1745698163907,0.5239427,94424.0,94423.0,0.52987072]
[1745698164107,0.8847427,94424.0,94423.0,0.52987072]
[1745698167809,0.5239427,94424.0,94423.0,0.52987072]
[1745698168212,0.8847427,94424.0,94423.0,0.52987072]
[1745698168605,0.8847427,94424.0,94423.0,0.52966526]
[1745698170607,0.28,94424.0,94423.0,0.52966526]
[1745698170919,0.6408,94424.0,94423.0,0.52966526]
[1745698173511,0.8525427,94424.0,94423.0,0.52966526]
[1745698173716,0.8525427,94424.0,94423.0,0.5137309]
[1745698175916,0.8525427,94424.0,94423.0,0.3019859]
[1745698176119,0.8525427,94424.0,94423.0,0.0709859]
[1745698176322,0.2117517,94420.0,94419.0,0.00016]
[1745698176520,0.4617517,94420.0,94419.0,0.00016]
[1745698176720,0.2117607,94416.0,94415.0,0.16128113]
[1745698176923,0.4617607,94416.0,94415.0,0.16128113]
[1745698177219,0.56767671,94416.0,94415.0,0.16128113]
[1745698177420,0.2117696,94412.0,94411.0,0.00016]
[1745698177618,0.8525696,94412.0,94411.0,0.00016]
[1745698177920,0.2117764,94409.0,94403.0,0.0322]
[1745698178123,0.4617764,94409.0,94408.0,0.25508564]
[1745698178326,0.5677004,94409.0,94408.0,0.25508564]
[1745698179017,1.2893004,94409.0,94408.0,0.25508564]
[1745698179224,1.4573004,94409.0,94408.0,0.25508564]
[1745698180127,1.3513764,94409.0,94408.0,0.25508564]
[1745698181125,1.3513764,94409.0,94408.0,0.04]
[1745698184821,0.6297764,94409.0,94408.0,0.04]
[1745698185121,1.3513764,94409.0,94408.0,0.04]
[1745698190924,1.3513764,94409.0,94408.0,0.073]
[1745698196129,1.1833764,94409.0,94408.0,0.073]
[1745698199230,1.3513764,94409.0,94408.0,0.073]
[1745698200137,1.1833764,94409.0,94408.0,0.073]
[1745698202140,1.1833764,94409.0,94408.0,0.1058]
[1745698202529,1.1833764,94409.0,94408.0,0.3175786]
[1745698202839,0.8225764,94409.0,94408.0,0.3175786]
[1745698203336,0.8225764,94409.0,94408.0,0.4855786]
[1745698204137,0.8225764,94409.0,94408.0,0.3175786]
[1745698207135,0.8225764,94409.0,94408.0,0.4855786]
[1745698209138,0.8225764,94409.0,94408.0,0.3175786]
[1745698212141,0.6108,94409.0,94408.0,0.3175786]
[1745698212335,0.25,94409.0,94408.0,0.42350259]
[1745698212946,0.25,94409.0,94408.0,0.4400526]
[1745698213144,0.25,94409.0,94408.0,0.6080526]
[1745698214057,0.25,94409.0,94408.0,0.60805247]
[1745698215050,0.25,94409.0,94408.0,0.50212848]
[1745698228264,0.25,94409.0,94408.0,0.50212895]
[1745698229063,0.4617764,94409.0,94408.0,0.29035035]
[1745698229264,0.4617764,94409.0,94408.0,0.05655035]
[1745698229460,0.8225764,94409.0,94408.0,0.26832895]
[1745698230260,0.8856764,94409.0,94408.0,0.26832895]
[1745698233568,0.8856764,94409.0,94408.0,0.26825987]
[1745698234276,0.8856764,94409.0,94408.0,0.30045987]
[1745698237066,0.8856764,94409.0,94408.0,0.30040645]
[1745698238474,0.5248764,94409.0,94408.0,0.30040645]
[1745698238676,0.8856764,94409.0,94408.0,0.30040645]
[1745698242462,0.8856764,94409.0,94408.0,0.30041208]
[1745698247771,0.8856764,94409.0,94408.0,0.04]
[1745698248077,0.2117853,94405.0,94404.0,0.01123946]
[1745698248381,0.2117898,94403.0,94393.0,0.0321]
[1745698248578,0.2118055,94396.0,94394.0,0.2118078]
[1745698248778,0.8626055,94396.0,94395.0,0.3518078]
[1745698249372,0.9570055,94396.0,94395.0,0.3518078]
[1745698249573,0.9570055,94396.0,94395.0,0.36238396]
[1745698249976,0.9570055,94396.0,94395.0,0.36338396]
[1745698251374,0.9262055,94396.0,94395.0,0.36338396]
[1745698252081,0.9262055,94396.0,94395.0,0.40231169]
[1745698253573,0.8958055,94396.0,94395.0,0.40231169]
[1745698254384,0.5350055,94396.0,94395.0,0.40231169]
[1745698254586,0.8958055,94396.0,94395.0,0.40231169]
[1745698254980,0.5350055,94396.0,94395.0,0.40231169]
[1745698255282,0.8958055,94396.0,94395.0,0.40231169]
[1745698257886,0.8626055,94396.0,94395.0,0.40231169]
[1745698260887,0.8626055,94396.0,94395.0,0.43291169]
[1745698263389,0.5018055,94396.0,94395.0,0.43291169]
[1745698263578,0.8626055,94396.0,94395.0,0.43291169]
[1745698272885,0.5018055,94396.0,94395.0,0.43291169]
[1745698273081,0.29,94396.0,94395.0,0.60091169]
[1745698275896,0.5018055,94396.0,94395.0,0.60091169]
[1745698287298,0.29,94396.0,94395.0,0.60091169]
[1745698287801,0.5018055,94396.0,94395.0,0.60091169]
[1745698290304,0.5018055,94396.0,94395.0,0.43291169]
[1745698300304,0.5333055,94396.0,94395.0,0.43291169]
[1745698310719,0.5333055,94396.0,94395.0,0.22110389]
[1745698311314,0.5333055,94396.0,94395.0,0.15950389]
[1745698311715,0.5333055,94396.0,94395.0,0.17521472]
[1745698312219,0.7013055,94396.0,94395.0,0.17521472]
[1745698315324,0.7013055,94396.0,94395.0,0.37131169]
[1745698315718,0.7013055,94396.0,94395.0,0.38703068]
[1745698315918,0.7013055,94396.0,94395.0,0.37131169]
[1745698316123,0.7013055,94396.0,94395.0,0.38706724]
[1745698316829,0.7013055,94396.0,94395.0,0.17525944]
[1745698317630,0.7013055,94396.0,94395.0,0.15950389]
[1745698320928,0.7013055,94396.0,94395.0,0.18990389]
[1745698325833,0.2118302,94385.0,94377.0,0.16149274]
[1745698326032,0.8626302,94385.0,94384.0,0.06940131]
[1745698326234,0.8626302,94385.0,94384.0,0.08004513]
[1745698326633,0.8626302,94385.0,94384.0,0.06940131]
[1745698326831,0.8626302,94385.0,94377.0,0.16149274]
[1745698326832,0.2118459,94378.0,94377.0,0.16149274]
[1745698327030,0.4518459,94378.0,94377.0,0.23149274]
[1745698327235,0.6198459,94378.0,94377.0,0.23149274]
[1745698327435,0.6198459,94378.0,94377.0,0.23956087]
[1745698327630,0.6821459,94378.0,94377.0,0.23956087]
[1745698328138,0.6821459,94378.0,94377.0,0.07806813]
[1745698330436,0.78810191,94378.0,94377.0,0.07806813]
[1745698330631,0.78810191,94378.0,94377.0,0.00806813]
[1745698330832,0.2118572,94373.0,94372.0,0.0326]
[1745698331039,0.8526572,94373.0,94372.0,0.0626]
[1745698331239,1.0206572,94373.0,94372.0,0.0626]
[1745698331837,1.0536572,94373.0,94372.0,0.0626]
[1745698332037,1.0536572,94373.0,94372.0,0.07036765]
[1745698334239,1.0546572,94373.0,94372.0,0.07036765]
[1745698335041,1.0546572,94373.0,94372.0,0.03776765]
[1745698336639,1.0546572,94373.0,94372.0,0.06846765]
[1745698338135,1.0546572,94373.0,94372.0,0.09986765]
[1745698341342,0.8866572,94373.0,94372.0,0.09986765]
[1745698341544,0.5258572,94373.0,94372.0,0.09986765]
[1745698341935,0.8866572,94373.0,94372.0,0.09986765]
[1745698346144,0.2118616,94371.0,94370.0,0.00105965]
[1745698346341,0.4718616,94371.0,94370.0,0.03105965]
[1745698346843,0.5344616,94371.0,94370.0,0.03105965]
[1745698347354,0.5354616,94371.0,94370.0,0.03105965]
[1745698347844,0.8962616,94371.0,94370.0,0.03105965]
[1745698350347,0.8962616,94371.0,94370.0,0.03914764]
[1745698350548,0.2118684,94368.0,94355.0,0.0301]
[1745698350746,0.2118931,94357.0,94356.0,0.0302]
[1745698350946,0.8526931,94357.0,94356.0,0.19945365]
[1745698351650,0.8526931,94357.0,94356.0,0.21009416]
[1745698351850,0.8526931,94357.0,94356.0,0.42198946]
[1745698352247,0.6408,94357.0,94356.0,0.42298946]
[1745698352849,0.28,94357.0,94356.0,0.78378946]
[1745698353244,0.28,94357.0,94356.0,0.95178946]
[1745698355646,0.3608,94371.0,94356.0,0.95178946]
[1745698355647,0.3608,94371.0,94370.0,0.2118639]
[1745698355857,0.6008,94371.0,94370.0,0.3618639]
[1745698356253,0.6008,94371.0,94370.0,0.5298639]
[1745698356653,0.241,94371.0,94370.0,0.5927639]
[1745698359757,0.241,94371.0,94370.0,0.60846076]
[1745698364954,0.241,94371.0,94370.0,0.5927639]
[1745698365464,0.4528616,94371.0,94370.0,0.5927639]
[1745698365661,0.272,94371.0,94370.0,0.5927639]
[1745698371264,0.4838616,94371.0,94370.0,0.318]
[1745698372362,0.5167616,94371.0,94370.0,0.15]
[1745698374266,0.8775616,94371.0,94370.0,0.15]
[1745698377259,1.0455616,94371.0,94370.0,0.15]
[1745698379667,0.2118908,94358.0,94357.0,0.0307]
[1745698379866,0.5018908,94358.0,94357.0,0.14]
[1745698380273,0.6698908,94358.0,94357.0,0.14]
[1745698380974,0.7027908,94358.0,94357.0,0.14]
[1745698382472,0.211911,94349.0,94348.0,0.16149274]
[1745698382671,0.2119268,94342.0,94341.0,0.21508564]
[1745698382877,0.2119268,94342.0,94341.0,0.24508564]
[1745698383070,0.6699268,94342.0,94341.0,0.24508564]